bitfinex-derivatives/quotes_SOLF0:USTF0_20241127
["timestamp","ask_amount","ask_price","bid_price","bid_amount"]
[1732723996069,16.04603175,239.83,239.76,2.0838]
[1732723996070,2.0834,239.82,239.76,2.0838]
[1732723996365,10.01918469,239.81,239.69,2.92]
[1732723996757,10.01918469,239.81,239.77,2.0837]
[1732723997157,12.10258469,239.81,239.77,2.0837]
[1732723997767,10.01918469,239.81,239.78,2.0836]
[1732723997969,12.52,240.03,239.76,2.92]
[1732723998270,2.0828,239.88,239.8,2.0834]
[1732723998459,2.0828,239.88,239.76,2.92]
[1732723998868,2.0828,239.88,239.85,2.083]
[1732723999365,2.0828,239.88,239.76,2.92]
[1732723999765,10.01918469,239.9,239.76,2.92]
[1732723999966,12.10188469,239.9,239.76,2.92]
[1732724000368,2.0827,239.9,239.86,2.0829]
[1732724000671,16.02036999,239.91,239.76,2.92]
[1732724000672,16.02036999,239.95,239.76,2.92]
[1732724000965,16.02036999,239.95,239.77,4.9501]
[1732724001173,5.1158,239.97,239.78,16.02036999]
[1732724001361,16.02036999,239.99,239.79,2.4978]
[1732724002265,16.02036999,239.99,239.95,2.0821]
[1732724003071,16.02036999,239.99,239.88,2.92]
[1732724003269,16.02036999,239.99,239.86,2.92]
[1732724003474,2.92,240.04,239.85,2.92]
[1732724003475,16.02036999,239.95,239.85,2.92]
[1732724003766,2.0824,239.93,239.82,2.92]
[1732724003970,16.02036999,239.95,239.82,2.92]
[1732724004966,16.02036999,239.95,239.91,2.0825]
[1732724005169,2.92,239.97,239.91,2.0825]
[1732724005366,2.082,239.98,239.91,2.0825]
[1732724006073,2.082,239.97,239.91,2.0825]
[1732724006269,16.02036999,240.0,239.82,18.94036999]
[1732724006474,2.0819,239.99,239.82,18.94036999]
[1732724007569,2.0819,239.98,239.82,18.94036999]
[1732724007771,16.02036999,240.0,239.82,2.92]
[1732724007975,16.02036999,240.0,239.83,2.92]
[1732724008169,16.02036999,239.96,239.79,2.4978]
[1732724008373,16.02036999,239.96,239.86,2.0829]
[1732724008566,16.02036999,239.96,239.79,2.4978]
[1732724008774,16.02036999,239.96,239.85,2.083]
[1732724008775,7.6854,239.95,239.85,2.083]
[1732724009674,2.0824,239.92,239.86,2.0829]
[1732724010374,7.6854,239.95,239.89,2.0827]
[1732724010770,7.6854,239.95,239.79,5.4178]
[1732724011276,2.9,239.94,239.79,5.4178]
[1732724011475,2.0828,239.88,239.77,4.9501]
[1732724012171,2.0827,239.9,239.77,4.9501]
[1732724012367,2.9,239.94,239.77,4.9501]
[1732724012868,2.0823,239.93,239.77,4.9501]
[1732724013067,2.9,239.94,239.77,4.9501]
[1732724013467,4.9823,239.94,239.88,2.0827]
[1732724013978,2.0824,239.92,239.86,2.0829]
[1732724014275,2.9,239.94,239.77,4.9501]
[1732724014577,2.0824,239.93,239.87,2.0828]
[1732724015184,2.0824,239.93,239.88,2.0827]
[1732724015477,16.02036999,239.92,239.71,2.436]
[1732724015678,16.02036999,239.92,239.72,5.3901]
[1732724015871,2.0610506,239.91,239.73,2.9]
[1732724016178,2.0610506,239.91,239.74,2.9]
[1732724016374,16.02036999,239.92,239.74,2.9]
[1732724016878,16.02036999,239.92,239.84,2.0831]
[1732724017078,16.02036999,239.92,239.74,18.92036999]
[1732724017276,2.9,239.94,239.74,18.92036999]
[1732724017574,2.0824,239.92,239.86,2.0829]
[1732724018078,2.9,239.94,239.74,18.92036999]
[1732724018276,4.9823,239.94,239.88,2.0827]
[1732724018476,4.9823,239.94,239.74,18.92036999]
[1732724018477,2.9,239.94,239.78,16.02036999]
[1732724018681,5.0667,239.95,239.82,2.9]
[1732724019173,7.1489,239.95,239.89,2.0826]
[1732724020280,7.1489,239.95,239.9,2.0826]
[1732724020881,2.0823,239.94,239.9,2.0826]
[1732724021271,5.0667,239.95,239.82,2.9]
[1732724021472,2.0824,239.93,239.82,2.9]
[1732724021678,10.00647542,239.94,239.82,2.9]
[1732724022183,2.0824,239.93,239.82,2.9]
[1732724022474,2.0824,239.93,239.85,2.083]
[1732724022677,2.0824,239.93,239.82,2.9]
[1732724023571,10.00647542,239.94,239.87,2.0828]
[1732724023775,10.00647542,239.88,239.76,2.9]
[1732724024675,12.90647542,239.91,239.76,2.9]
[1732724024983,8.2577074,239.9,239.76,2.9]
[1732724025183,12.90647542,239.91,239.76,2.9]
[1732724025486,10.00647542,239.88,239.76,2.9]
[1732724025676,10.00647542,239.88,239.81,2.0833]
[1732724026080,10.00647542,239.88,239.76,2.9]
[1732724026273,8.26855639,239.87,239.81,2.0834]
[1732724026474,10.00647542,239.88,239.81,2.0834]
[1732724026676,8.26859486,239.87,239.81,2.0834]
[1732724026884,12.90647542,239.91,239.76,12.90647542]
[1732724027188,17.59762785,239.9,239.76,12.90647542]
[1732724027477,8.26851129,239.89,239.79,2.0835]
[1732724027682,8.26851129,239.88,239.76,12.90647542]
[1732724027874,12.90647542,239.91,239.76,12.90647542]
[1732724027875,8.27089788,239.87,239.76,12.90647542]
[1732724028078,12.40667542,239.92,239.76,12.90647542]
[1732724028274,17.60513874,239.91,239.76,12.90647542]
[1732724028581,8.27206446,239.9,239.79,10.00647542]
[1732724028784,2.0822,239.94,239.88,2.0827]
[1732724028984,17.60364683,239.93,239.79,10.00647542]
[1732724029285,17.60364683,239.92,239.89,2.0826]
[1732724029581,10.00647542,239.95,239.79,10.00647542]
[1732724029881,17.60411497,239.94,239.83,2.9]
[1732724030080,17.60411497,239.93,239.83,2.9]
[1732724030280,8.27169026,239.92,239.83,2.9]
[1732724030481,10.00647542,239.95,239.83,2.9]
[1732724030683,8.27230377,239.94,239.83,2.9]
[1732724030881,17.60545769,239.94,239.83,2.9]
[1732724031080,8.27230377,239.93,239.9,2.0826]
[1732724031281,8.27230377,239.92,239.83,2.9]
[1732724031488,8.27230377,239.91,239.83,2.9]
[1732724031684,17.97880629,239.91,239.83,2.9]
[1732724031887,10.00647542,239.95,239.9,2.0826]
[1732724032185,10.00647542,239.95,239.83,2.9]
[1732724032186,17.97913713,239.94,239.83,2.9]
[1732724032375,17.97913713,239.93,239.83,2.9]
[1732724032580,17.97913713,239.92,239.83,2.9]
[1732724032780,9.70648544,239.91,239.83,2.9]
[1732724033081,10.00647542,239.95,239.83,2.9]
[1732724033288,10.00647542,239.91,239.83,2.9]
[1732724033590,9.70569763,239.9,239.88,2.0827]
[1732724034087,9.70569763,239.9,239.78,2.9]
[1732724036588,9.70569763,239.9,239.87,2.0828]
[1732724036787,9.70569763,239.9,239.78,2.9]
[1732724037290,10.00647542,239.87,239.76,2.9]
[1732724037491,10.00647542,239.87,239.72,2.4901]
[1732724037692,17.98379129,239.86,239.82,2.0832]
[1732724037887,9.70569763,239.85,239.82,2.0832]
[1732724038087,9.70569763,239.86,239.72,2.4901]
[1732724038388,10.00647542,239.84,239.8,2.0834]
[1732724038695,9.70569763,239.83,239.72,2.4901]
[1732724039395,9.70569763,239.83,239.79,2.0835]
[1732724039692,9.70569763,239.83,239.72,2.4901]
[1732724040595,8.28386658,239.82,239.77,2.0837]
[1732724040796,9.70569763,239.81,239.72,2.4901]
[1732724041193,9.70569763,239.83,239.72,2.4901]
[1732724041386,18.00633109,239.82,239.72,2.4901]
[1732724041589,9.72130446,239.81,239.72,2.4901]
[1732724041791,2.9,239.84,239.72,2.4901]
[1732724042086,18.00615534,239.83,239.72,2.4901]
[1732724042291,18.00615534,239.82,239.79,2.0835]
[1732724042592,9.7212725,239.81,239.72,2.4901]
[1732724042794,12.90647542,239.84,239.8,2.0834]
[1732724042991,18.01187538,239.83,239.8,2.0834]
[1732724043195,18.01187538,239.82,239.8,2.0834]
[1732724043392,9.72429425,239.81,239.79,2.0835]
[1732724043591,9.72429425,239.8,239.79,2.0835]
[1732724043786,9.72429425,239.83,239.72,2.4901]
[1732724043988,8.28711545,239.82,239.8,2.0834]
[1732724044191,9.72429425,239.81,239.8,2.0834]
[1732724044793,9.72429425,239.83,239.8,2.0834]
[1732724044988,18.01081575,239.82,239.81,2.0834]
[1732724045191,9.72429425,239.82,239.81,2.0834]
[1732724045391,9.72429425,239.83,239.72,2.4901]
[1732724045587,9.72429425,239.83,239.8,2.0834]
[1732724046199,9.72429425,239.83,239.81,2.0833]
[1732724046392,9.72429425,239.83,239.73,10.00647542]
[1732724046997,9.72429425,239.82,239.73,10.00647542]
[1732724047297,9.72429425,239.81,239.8,2.0835]
[1732724047795,12.08937542,239.87,239.81,2.0833]
[1732724047997,18.3811734,239.86,239.75,2.9]
[1732724048198,18.3811734,239.85,239.75,2.9]
[1732724048397,10.09547419,239.84,239.75,2.9]
[1732724048696,10.09547419,239.83,239.75,2.9]
[1732724048898,10.09547419,239.82,239.77,2.0837]
[1732724049193,10.09547419,239.81,239.75,2.9]
[1732724049396,2.6006,239.89,239.83,2.0831]
[1732724049596,29.79497492,239.88,239.76,10.00647542]
[1732724049791,18.38215481,239.87,239.76,10.00647542]
[1732724050093,18.38215481,239.86,239.76,10.00647542]
[1732724050294,10.09601547,239.85,239.76,10.00647542]
[1732724050791,10.09601547,239.84,239.76,10.00647542]
[1732724050997,10.09601547,239.83,239.76,10.00647542]
[1732724051200,2.6006,239.89,239.84,2.0831]
[1732724051389,18.38574101,239.88,239.75,2.9]
[1732724051595,18.38574101,239.87,239.75,2.9]
[1732724051794,18.38574101,239.86,239.75,2.9]
[1732724052002,10.09796281,239.85,239.75,2.9]
[1732724052299,10.09796281,239.84,239.76,10.00647542]
[1732724052506,2.6006,239.89,239.85,2.083]
[1732724052801,2.6005,239.91,239.76,10.00647542]
[1732724052802,18.39157382,239.88,239.76,10.00647542]
[1732724052994,18.39157382,239.87,239.76,10.00647542]
[1732724053190,18.39157382,239.86,239.75,2.9]
[1732724053399,2.6005,239.91,239.79,10.00647542]
[1732724053596,8.29089529,239.9,239.79,10.00647542]
[1732724053899,18.39259661,239.89,239.88,2.0828]
[1732724054300,10.10170132,239.89,239.88,2.0828]
[1732724054499,10.00647542,239.95,239.9,2.0826]
[1732724054799,29.80894272,239.94,239.82,12.90647542]
[1732724055094,29.80894272,239.93,239.82,12.90647542]
[1732724055302,18.39064499,239.92,239.82,12.90647542]
[1732724055501,18.39064499,239.91,239.82,12.90647542]
[1732724055800,10.10061025,239.9,239.82,2.9]
[1732724056001,10.10061025,239.89,239.88,2.0828]
[1732724057699,10.10061025,239.89,239.83,2.5321]
[1732724057896,10.10061025,239.88,239.83,2.5321]
[1732724058101,10.00647542,239.92,239.83,2.5321]
[1732724058303,18.30365873,239.91,239.83,2.5321]
[1732724058505,18.30367594,239.9,239.83,2.5321]
[1732724058798,10.00647542,239.92,239.83,2.5321]
[1732724058799,10.01680391,239.89,239.83,2.5321]
[1732724059003,10.01680391,239.88,239.83,2.5321]
[1732724059204,10.01680391,239.87,239.83,2.5321]
[1732724059404,10.00647542,239.92,239.83,2.5321]
[1732724059597,18.30263561,239.91,239.83,2.5321]
[1732724059805,18.30263561,239.9,239.88,2.0828]
[1732724060005,10.01624771,239.89,239.88,2.0828]
[1732724060496,10.01624771,239.91,239.88,2.0828]
[1732724060701,8.2858671,239.9,239.88,2.0828]
[1732724060896,10.01624771,239.89,239.88,2.0828]
[1732724062505,10.01624771,239.89,239.8,2.9]
[1732724062807,10.00647542,239.92,239.88,2.0828]
[1732724063007,18.29940667,239.91,239.88,2.0828]
[1732724063304,10.014463,239.9,239.89,2.0827]
[1732724063507,10.014463,239.91,239.89,2.0827]
[1732724063702,10.014463,239.9,239.89,2.0827]
[1732724064607,6.40416261,239.91,239.82,6.40416261]
[1732724064908,6.40416261,239.92,239.82,6.40416261]
[1732724065109,10.01170469,239.91,239.82,6.40416261]
[1732724065299,6.40416261,239.92,239.91,2.0825]
[1732724065501,16.41433932,239.92,239.91,2.0825]
[1732724067308,16.41433932,239.92,239.9,2.0826]
[1732724067512,16.41433932,239.91,239.79,2.4633]
[1732724067710,6.40416261,239.86,239.85,2.083]
[1732724069105,6.40416261,239.88,239.87,2.0828]
[1732724070112,2.5744,239.98,239.8,2.9]
[1732724070113,2.5744,239.98,239.89,2.0826]
[1732724070307,6.40416261,239.9,239.89,2.0826]
[1732724070503,16.41144398,239.9,239.89,2.0826]
[1732724072107,10.00728137,239.9,239.89,2.0826]
[1732724072306,2.5744,239.98,239.9,2.0826]
[1732724072512,6.40416261,239.96,239.87,9.30416261]
[1732724072707,18.28451628,239.95,239.87,9.30416261]
[1732724072908,10.00630303,239.94,239.87,9.30416261]
[1732724073408,6.40416261,239.96,239.87,9.30416261]
[1732724073607,10.00387442,239.95,239.87,9.30416261]
[1732724073815,10.00387442,239.94,239.87,9.30416261]
[1732724074015,6.40416261,239.96,239.95,2.0822]
[1732724074509,16.40789956,239.96,239.87,2.9]
[1732724074720,6.40416261,239.92,239.83,6.40416261]
[1732724074908,6.40416261,239.92,239.84,2.9]
[1732724075113,6.40416261,239.9,239.84,2.9]
[1732724076108,6.40416261,239.9,239.89,2.0827]
[1732724076819,16.40571174,239.9,239.89,2.0827]
[1732724077015,6.40416261,239.9,239.89,2.0827]
[1732724077514,6.40416261,239.9,239.84,2.9]
[1732724078115,2.0822,239.95,239.84,2.9]
[1732724078316,6.40416261,239.9,239.84,2.9]
[1732724078617,6.40416261,239.9,239.89,2.0827]
[1732724079620,6.40416261,239.9,239.88,2.0828]
[1732724080312,6.40416261,239.9,239.84,2.9]
[1732724080313,6.40416261,239.9,239.89,2.0827]
[1732724081719,6.40416261,239.9,239.76,2.9]
[1732724081720,16.40382451,239.9,239.76,2.9]
[1732724081922,6.40416261,239.81,239.76,2.9]
[1732724082925,6.40416261,239.81,239.8,2.0835]
[1732724083730,6.40416261,239.81,239.76,2.0838]
[1732724083919,6.40416261,239.81,239.74,2.9]
[1732724084121,6.40416261,239.82,239.74,2.9]
[1732724084823,6.40416261,239.8,239.74,2.9]
[1732724085831,6.40416261,239.86,239.78,6.40416261]
[1732724086125,10.37713533,239.85,239.78,6.40416261]
[1732724086330,10.37713533,239.84,239.78,6.40416261]
[1732724086531,10.37713533,239.85,239.78,6.40416261]
[1732724086721,10.37713533,239.84,239.78,6.40416261]
[1732724086921,6.40416261,239.86,239.83,2.0832]
[1732724087122,10.37886599,239.85,239.83,2.0832]
[1732724087422,10.37886599,239.84,239.83,2.0832]
[1732724088030,16.7830286,239.84,239.81,2.0833]
[1732724088231,10.37886599,239.83,239.76,6.40416261]
[1732724088630,6.40416261,239.85,239.84,2.0831]
[1732724088831,16.78656596,239.85,239.76,6.40416261]
[1732724089033,10.38240335,239.84,239.76,6.40416261]
[1732724090732,10.38240335,239.84,239.83,2.0832]
[1732724090930,10.38240335,239.84,239.76,6.40416261]
[1732724091235,6.40416261,239.84,239.83,2.0832]
[1732724091934,16.79205961,239.84,239.83,2.0832]
[1732724095026,10.387897,239.84,239.83,2.0832]
[1732724095237,5.23082096,239.84,239.83,8.48736261]
[1732724095537,2.6127,240.02,239.83,6.40416261]
[1732724095538,6.40416261,239.93,239.83,6.40416261]
[1732724096034,6.40416261,239.91,239.83,6.40416261]
[1732724096428,6.40416261,239.91,239.89,2.0826]
[1732724096633,6.40416261,239.91,239.82,2.9]
[1732724096827,6.40416261,239.88,239.82,2.9]
[1732724097034,6.40416261,239.9,239.88,2.0827]
[1732724097529,6.40416261,239.9,239.82,2.9]
[1732724097736,6.40416261,239.86,239.85,2.0829]
[1732724097937,6.40416261,239.86,239.7,7.5562]
[1732724098137,6.40416261,239.86,239.85,2.083]
[1732724099234,6.40416261,239.86,239.84,2.0831]
[1732724099543,6.40416261,239.86,239.78,2.9]
[1732724099836,6.40416261,239.83,239.8,2.0834]
[1732724100142,5.2841,239.91,239.7,7.5562]
[1732724100143,6.40416261,239.81,239.71,2.88]
[1732724100433,6.40416261,239.76,239.71,2.88]
[1732724100736,6.40416261,239.74,239.72,2.0841]
[1732724101039,6.40416261,239.74,239.65,6.40416261]
[1732724101229,6.40416261,239.74,239.65,9.28416261]
[1732724101434,6.40416261,239.7,239.65,2.88]
[1732724101937,2.6392,239.79,239.67,41.79454608]
[1732724102235,2.88,239.86,239.73,6.40416261]
[1732724102536,6.40416261,239.8,239.73,6.40416261]
[1732724102733,6.40416261,239.76,239.72,2.88]
[1732724102933,2.88,239.86,239.7,2.0843]
[1732724102934,6.40416261,239.74,239.7,2.0843]
[1732724103136,6.40416261,239.74,239.67,44.67454608]
[1732724104044,6.40416261,239.74,239.73,2.0841]
[1732724104338,4.6974,239.81,239.73,2.0841]
[1732724104533,6.40416261,239.76,239.75,2.0839]
[1732724105145,6.40416261,239.8,239.73,6.40416261]
[1732724105443,10.34822836,239.79,239.73,6.40416261]
[1732724105636,2.614,239.81,239.73,6.40416261]
[1732724105637,10.34822836,239.78,239.77,2.0837]
[1732724105836,6.40416261,239.82,239.75,6.40416261]
[1732724106038,2.5006,239.88,239.77,6.40416261]
[1732724106239,6.40416261,239.86,239.77,6.40416261]
[1732724106440,10.34603601,239.85,239.77,6.40416261]
[1732724106635,6.40416261,239.86,239.77,6.40416261]
[1732724107244,6.40416261,239.84,239.77,6.40416261]
[1732724107542,6.40416261,239.84,239.83,2.0832]
[1732724109544,2.5006,239.88,239.84,2.0831]
[1732724109745,6.40416261,239.85,239.84,2.0831]
[1732724110239,2.3931,239.93,239.82,2.88]
[1732724110445,6.40416261,239.9,239.83,6.40416261]
[1732724110640,10.34668436,239.89,239.83,6.40416261]
[1732724110847,6.40416261,239.92,239.83,6.40416261]
[1732724111147,13.22527631,239.91,239.71,4.1685]
[1732724111445,6.40416261,239.79,239.71,6.40416261]
[1732724111747,6.40416261,239.83,239.73,6.40416261]
[1732724111940,6.40416261,239.83,239.75,6.40416261]
[1732724112136,6.40416261,239.88,239.79,6.40416261]
[1732724112435,10.34794387,239.87,239.83,2.0831]
[1732724112640,6.40416261,239.88,239.79,6.40416261]
[1732724112944,10.3477876,239.87,239.79,6.40416261]
[1732724113146,6.40416261,239.9,239.81,6.40416261]
[1732724113347,10.34734646,239.89,239.83,6.40416261]
[1732724113549,6.40416261,239.9,239.82,2.88]
[1732724113848,6.40416261,239.9,239.81,6.40416261]
[1732724114043,6.40416261,239.9,239.88,2.0828]
[1732724114246,2.88,239.99,239.78,6.40416261]
[1732724114247,6.40416261,239.88,239.78,6.40416261]
[1732724114549,6.40416261,239.86,239.78,6.40416261]
[1732724114743,6.40416261,239.86,239.85,2.083]
[1732724115144,2.88,239.99,239.82,6.40416261]
[1732724115345,30.38767983,239.98,239.82,6.40416261]
[1732724115542,6.40416261,239.92,239.84,6.40416261]
[1732724115747,6.40416261,239.92,239.91,2.0825]
[1732724115943,16.75177561,239.92,239.84,6.40416261]
[1732724116146,10.347613,239.91,239.84,6.40416261]
[1732724116345,6.40416261,239.9,239.8,4.8974]
[1732724116544,6.40416261,239.86,239.8,4.8974]
[1732724116740,6.40416261,239.84,239.79,2.4609]
[1732724117148,5.1364,239.91,239.79,2.4609]
[1732724117451,6.40416261,239.87,239.79,8.86506261]
[1732724118246,6.40416261,239.87,239.84,2.0831]
[1732724118452,6.40416261,239.89,239.79,8.86506261]
[1732724118749,2.88,239.93,239.88,2.0828]
[1732724118950,6.40416261,239.89,239.88,2.0828]
[1732724119147,2.88,239.96,239.83,6.40416261]
[1732724119364,6.40416261,239.93,239.85,6.40416261]
[1732724119742,10.3506246,239.92,239.87,6.40416261]
[1732724119951,6.40416261,239.95,239.92,2.0824]
[1732724120152,10.35028911,239.94,239.92,2.0824]
[1732724120352,16.75445172,239.93,239.92,2.0824]
[1732724120558,16.75445172,239.93,239.83,11.24746261]
[1732724120854,6.40416261,239.91,239.83,11.24746261]
[1732724121055,10.35053669,239.9,239.83,11.24746261]
[1732724121244,5.0758,240.01,239.85,6.40416261]
[1732724121449,6.40416261,239.93,239.85,6.40416261]
[1732724121649,10.35021943,239.92,239.91,2.0825]
[1732724121846,5.0758,240.01,239.89,6.40416261]
[1732724122048,30.39376616,240.0,239.89,6.40416261]
[1732724122249,6.40416261,239.98,239.92,2.0824]
[1732724122552,6.40416261,239.94,239.9,2.5414]
[1732724122749,10.34959804,239.93,239.9,2.5414]
[1732724122951,6.40416261,239.96,239.95,2.0822]
[1732724123148,6.40416261,239.98,239.9,8.94556261]
[1732724123349,10.34801346,239.97,239.9,8.94556261]
[1732724123550,10.34801346,239.96,239.9,2.5414]
[1732724123855,6.40416261,239.92,239.83,11.24746261]
[1732724124055,6.40416261,239.92,239.91,2.0825]
[1732724124554,6.40416261,239.92,239.83,11.24746261]
[1732724124555,16.74902983,239.92,239.83,11.24746261]
[1732724124756,6.40416261,239.88,239.83,7.7233]
[1732724125452,6.40416261,239.88,239.83,5.3152]
[1732724125644,6.40416261,239.88,239.8,2.88]
[1732724125845,6.40416261,239.88,239.81,6.40416261]
[1732724126056,6.40416261,239.9,239.88,2.0827]
[1732724126251,10.0085869,239.93,239.88,2.0827]
[1732724126456,10.34565486,239.92,239.8,2.88]
[1732724126651,10.34565486,239.91,239.81,10.0085869]
[1732724126857,10.0085869,239.93,239.8,2.88]
[1732724127057,10.34560909,239.92,239.83,2.0831]
[1732724127352,10.34560909,239.92,239.8,2.88]
[1732724127353,10.0085869,239.93,239.8,2.88]
[1732724127546,10.34456982,239.92,239.8,2.88]
[1732724127856,10.0085869,239.9,239.8,2.88]
[1732724128055,10.34456982,239.89,239.77,2.5414]
[1732724128252,10.0085869,239.87,239.81,2.0834]
[1732724128553,10.34456982,239.86,239.81,2.0834]
[1732724128753,10.34456982,239.86,239.82,2.0833]
[1732724129456,10.0085869,239.84,239.72,5.2087]
[1732724129860,10.34789765,239.83,239.77,2.0836]
[1732724130052,10.34789765,239.82,239.71,2.88]
[1732724130254,10.0085869,239.84,239.71,2.88]
[1732724130549,10.34777399,239.83,239.7,2.5229]
[1732724130757,10.34777399,239.82,239.7,2.5229]
[1732724131157,10.34777399,239.82,239.78,2.0836]
[1732724131456,10.34777399,239.82,239.71,10.0085869]
[1732724131653,10.0085869,239.85,239.81,2.0834]
[1732724131857,10.34699599,239.84,239.71,10.0085869]
[1732724132157,10.34699599,239.83,239.71,10.0085869]
[1732724132357,10.34699599,239.82,239.71,10.0085869]
[1732724132654,10.0085869,239.85,239.71,10.0085869]
[1732724132853,10.34669765,239.84,239.74,2.0839]
[1732724133055,10.34669765,239.83,239.71,10.0085869]
[1732724133257,10.34669765,239.82,239.71,10.0085869]
[1732724133458,10.0085869,239.85,239.8,2.0835]
[1732724133756,10.34652698,239.84,239.8,2.0835]
[1732724134057,10.34652698,239.83,239.8,2.0835]
[1732724134355,10.34652698,239.82,239.8,2.0835]
[1732724134558,10.0085869,239.85,239.8,2.0834]
[1732724134747,10.34606001,239.84,239.8,2.0834]
[1732724134946,10.0085869,239.85,239.71,10.0085869]
[1732724134947,10.34606001,239.83,239.71,10.0085869]
[1732724135151,10.34606001,239.82,239.74,10.0085869]
[1732724135347,4.9373,239.87,239.74,10.0085869]
[1732724135557,10.3455705,239.86,239.74,10.0085869]
[1732724135752,10.3455705,239.85,239.82,2.0833]
[1732724135956,10.3455705,239.84,239.82,2.0833]
[1732724136151,10.3455705,239.83,239.82,2.0833]
[1732724136356,10.3455705,239.83,239.8,2.0834]
[1732724136549,10.3455705,239.82,239.71,10.0085869]
[1732724136752,4.9373,239.87,239.71,10.0085869]
[1732724136954,10.34529145,239.86,239.71,10.0085869]
[1732724137256,10.34529145,239.85,239.74,10.0085869]
[1732724137454,4.9373,239.87,239.74,10.0085869]
[1732724137455,10.34529145,239.84,239.74,10.0085869]
[1732724137760,10.34529145,239.83,239.82,2.0833]
[1732724137962,12.4811869,239.95,239.8,12.8885869]
[1732724138257,30.37706724,239.93,239.84,2.0831]
[1732724138457,22.10726067,239.92,239.82,2.88]
[1732724138656,8.26980657,239.91,239.82,2.88]
[1732724138854,10.34401255,239.91,239.82,2.88]
[1732724139060,10.34401255,239.9,239.82,2.88]
[1732724139259,10.34401255,239.89,239.82,2.88]
[1732724139459,10.34401255,239.88,239.82,2.88]
[1732724139654,10.34401255,239.87,239.82,2.88]
[1732724139855,12.4811869,239.95,239.82,2.88]
[1732724140061,18.61138589,239.93,239.82,2.88]
[1732724140261,10.34263914,239.92,239.91,2.0825]
[1732724144164,2.5132,240.0,239.87,10.0085869]
[1732724144364,30.35848245,239.99,239.96,2.082]
[1732724144660,30.35848245,239.98,239.87,10.0085869]
[1732724144863,10.33756835,239.97,239.87,10.0085869]
[1732724145062,18.60229339,239.97,239.87,10.0085869]
[1732724145467,8.26472504,239.97,239.87,10.0085869]
[1732724145668,8.26472504,239.97,239.84,10.0085869]
[1732724145968,10.0085869,239.98,239.84,10.0085869]
[1732724145969,2.3919,239.96,239.84,10.0085869]
[1732724146167,12.64970682,239.96,239.84,10.0085869]
[1732724146668,20.26739318,239.95,239.81,12.8885869]
[1732724146867,10.25880628,239.94,239.81,13.8444669]
[1732724148168,10.25880628,239.94,239.89,2.0826]
[1732724149369,8.27467247,239.93,239.89,2.0826]
[1732724149572,10.25880628,239.92,239.89,2.0826]
[1732724149774,10.25880628,239.91,239.89,2.0826]
[1732724149976,10.25880628,239.9,239.89,2.0826]
[1732724150273,10.25880628,239.9,239.81,13.8444669]
[1732724150574,10.25880628,239.89,239.81,13.8444669]
[1732724150769,10.25880628,239.88,239.84,10.0085869]
[1732724150969,2.3919,239.96,239.84,10.0085869]
[1732724151168,10.27393288,239.95,239.84,10.0085869]
[1732724151373,10.27393288,239.94,239.93,2.0823]
[1732724155080,10.0085869,240.04,239.98,2.0819]
[1732724155381,11.76775208,239.99,239.91,2.6056]
[1732724155583,8.27280784,239.98,239.91,5.179]
[1732724155874,10.0085869,240.04,239.91,5.179]
[1732724156079,17.55210189,240.03,239.91,5.179]
[1732724156282,8.27280332,240.02,239.99,2.0818]
[1732724156479,20.0388311,240.01,239.91,5.179]
[1732724156680,29.31812967,240.0,239.91,5.179]
[1732724156983,8.27280332,239.99,239.93,2.0823]
[1732724157179,10.0085869,240.04,239.91,5.179]
[1732724157374,29.31315078,240.03,239.91,5.179]
[1732724157581,29.31315078,240.02,239.91,5.179]
[1732724157883,29.31315078,240.01,239.91,5.179]
[1732724158083,29.31315078,240.0,239.91,5.179]
[1732724158280,8.27092339,239.99,239.91,5.179]
[1732724158582,10.0085869,240.04,239.98,2.0818]
[1732724158779,29.30952919,240.03,239.98,2.0818]
[1732724158975,29.30952919,240.02,239.98,2.0818]
[1732724159179,29.30952919,240.01,239.98,2.0818]
[1732724159382,29.30952919,240.0,239.98,2.0818]
[1732724159582,8.26990215,239.99,239.98,2.0818]
[1732724159783,10.0085869,240.07,240.02,2.0815]
[1732724159985,21.59414567,240.06,239.91,15.1875869]
[1732724160183,21.59414567,240.05,239.91,15.1875869]
[1732724160382,20.96267312,240.04,240.01,2.0816]